bitfinex-derivatives/quotes_SOLF0:USTF0_20251002
["timestamp","ask_amount","ask_price","bid_price","bid_amount"]
[1759413922219,7.16,226.77,226.62,7.21]
[1759413922420,61.702,226.76,226.62,7.21]
[1759413922623,3.9673,226.71,226.63,3.9687]
[1759413922922,7.16,226.75,226.63,3.9687]
[1759413923120,7.16,226.75,226.63,7.21]
[1759413923322,3.9671,226.73,226.64,3.9684]
[1759413924521,3.9673,226.72,226.64,3.9684]
[1759413924722,69.1369,226.74,226.63,10.88134833]
[1759413924923,69.1369,226.74,226.63,7.21]
[1759413925425,7.43,226.71,226.63,7.21]
[1759413926024,3.968,226.68,226.63,7.21]
[1759413926224,11.398,226.68,226.63,7.21]
[1759413926922,7.43,226.68,226.6,3.67134833]
[1759413928030,7.43,226.68,226.6,11.09134833]
[1759413928326,7.43,226.68,226.6,7.42]
[1759413929028,3.9683,226.66,226.6,7.42]
[1759413929228,7.43,226.68,226.6,7.42]
[1759413929632,3.9681,226.67,226.6,7.42]
[1759413929824,7.43,226.68,226.6,7.42]
[1759413930227,11.3986,226.65,226.6,7.42]
[1759413930528,1.71173895,226.71,226.59,11.09134833]
[1759413930729,3.9682,226.67,226.61,1.71173895]
[1759413931119,9.14173895,226.69,226.61,1.71173895]
[1759413931322,9.14173895,226.69,226.59,5.38308728]
[1759413931729,3.9679,226.68,226.6,7.42]
[1759413931930,9.14173895,226.69,226.6,7.42]
[1759413932125,9.14173895,226.69,226.6,9.13173895]
[1759413932430,3.9685,226.65,226.6,9.13173895]
[1759413932631,7.43,226.68,226.6,9.13173895]
[1759413933525,9.14173895,226.68,226.6,9.13173895]
[1759413933734,9.14173895,226.68,226.61,7.42]
[1759413934334,3.9685,226.65,226.61,7.42]
[1759413935435,11.3985,226.65,226.6,1.71173895]
[1759413935735,11.3985,226.65,226.6,9.13173895]
[1759413935934,3.9687,226.64,226.6,9.13173895]
[1759413937238,3.9689,226.63,226.6,1.71173895]
[1759413938243,1.71173895,226.64,226.57,3.67134833]
[1759413938431,61.732,226.65,226.57,3.67134833]
[1759413938432,7.43,226.6,226.57,3.67134833]
[1759413938632,7.43,226.6,226.54,3.67134833]
[1759413939941,11.3993,226.6,226.54,3.67134833]
[1759413940334,7.43,226.6,226.54,3.67134833]
[1759413940534,3.9696,226.59,226.54,11.09134833]
[1759413940734,7.43,226.58,226.54,11.09134833]
[1759413940937,7.43,226.59,226.53,3.67134833]
[1759413941141,7.43,226.55,226.52,3.67134833]
[1759413941339,7.43,226.55,226.51,3.67134833]
[1759413941539,1.71173895,226.56,226.51,3.67134833]
[1759413941737,7.43,226.55,226.51,3.67134833]
[1759413942137,7.43,226.55,226.5,3.67134833]
[1759413942333,9.14173895,226.56,226.48,3.67134833]
[1759413942745,11.4,226.56,226.48,3.67134833]
[1759413943042,7.43,226.56,226.48,3.67134833]
[1759413943243,11.4001,226.56,226.48,3.67134833]
[1759413943440,7.43,226.56,226.48,3.67134833]
[1759413945040,3.9706,226.53,226.48,11.09134833]
[1759413945248,7.43,226.52,226.48,7.42]
[1759413945540,7.43,226.52,226.47,3.67134833]
[1759413945942,11.4006,226.53,226.46,1.71173895]
[1759413946542,9.14173895,226.53,226.44,12.80308728]
[1759413947044,3.971,226.5,226.44,9.13173895]
[1759413947244,9.14173895,226.53,226.44,9.13173895]
[1759413948650,7.43,226.53,226.46,1.71173895]
[1759413950050,7.43,226.53,226.44,9.13173895]
[1759413950249,9.14173895,226.53,226.44,9.13173895]
[1759413950845,1.71173895,226.49,226.41,1.71173895]
[1759413951049,1.71173895,226.47,226.39,3.67134833]
[1759413951347,69.2095,226.48,226.36,12.33348593]
[1759413951348,7.43,226.44,226.36,3.67134833]
[1759413951849,11.4021,226.44,226.36,1.71173895]
[1759413952044,7.43,226.44,226.37,1.71173895]
[1759413952452,11.4021,226.44,226.37,1.71173895]
[1759413954251,3.9724,226.43,226.37,1.71173895]
[1759413954947,3.9726,226.42,226.37,1.71173895]
[1759413955152,11.1926,226.42,226.37,1.71173895]
[1759413955747,7.22,226.42,226.37,1.71173895]
[1759413956250,7.22,226.42,226.37,9.31173895]
[1759413956653,11.1917,226.47,226.39,1.71173895]
[1759413957153,7.22,226.47,226.41,1.71173895]
[1759413958260,7.22,226.47,226.38,2.678982]
[1759413958855,3.9719,226.46,226.38,2.678982]
[1759413960558,3.9719,226.46,226.37,14.252082]
[1759413960756,7.22,226.47,226.37,10.278982]
[1759413961258,7.22,226.47,226.37,7.6]
[1759413961464,3.9727,226.41,226.33,2.678982]
[1759413962163,7.22,226.42,226.32,7.6]
[1759413962556,3.973,226.39,226.32,7.6]
[1759413964155,11.1926,226.42,226.32,7.6]
[1759413964568,7.22,226.42,226.32,7.6]
[1759413964860,3.9729,226.4,226.32,7.6]
[1759413965452,7.22,226.38,226.26,7.6]
[1759413965659,7.22,226.38,226.27,2.678982]
[1759413965856,7.22,226.38,226.28,7.6]
[1759413966059,3.9728,226.4,226.31,7.6]
[1759413966559,7.22,226.43,226.34,7.6]
[1759413966959,11.1924,226.43,226.34,11.5737]
[1759413967359,7.22,226.43,226.34,11.5737]
[1759413968159,7.22,226.43,226.31,3.9743]
[1759413968356,61.795,226.42,226.3,7.6]
[1759413968560,7.22,226.41,226.3,7.6]
[1759413968764,3.9729,226.4,226.31,7.6]
[1759413969267,7.22,226.41,226.33,3.974]
[1759413969562,7.22,226.49,226.37,7.6]
[1759413969762,7.22,226.61,226.4,7.6]
[1759413969967,68.9769,226.56,226.41,2.678982]
[1759413970162,7.22,226.56,226.41,2.678982]
[1759413970363,7.22,226.56,226.42,3.9723]
[1759413970963,7.22,226.56,226.41,2.678982]
[1759413970964,7.22,226.56,226.46,3.9717]
[1759413971566,7.22,226.52,226.38,7.6]
[1759413971760,61.7699,226.51,226.38,10.278982]
[1759413971965,7.22,226.5,226.38,7.6]
[1759413972369,3.9719,226.45,226.38,7.6]
[1759413973568,7.22,226.47,226.38,7.6]
[1759413974070,3.9717,226.46,226.38,7.6]
[1759413974567,7.22,226.47,226.38,7.6]
[1759413974775,7.22,226.47,226.35,2.678982]
[1759413975463,7.22,226.44,226.34,7.6]
[1759413975871,3.9735,226.36,226.29,7.6]
[1759413976181,61.8027,226.39,226.29,7.6]
[1759413976771,3.9735,226.36,226.29,7.6]
[1759413976969,9.898982,226.41,226.29,7.6]
[1759413978275,3.9737,226.35,226.29,7.6]
[1759413979874,69.0306,226.36,226.23,7.6]
[1759413980269,7.22,226.36,226.23,7.6]
[1759413980474,3.9737,226.35,226.23,11.5757]
[1759413980677,7.22,226.36,226.23,11.5757]
[1759413980875,69.0321,226.36,226.23,7.6]
[1759413981179,7.22,226.33,226.23,7.6]
[1759413982076,3.9743,226.32,226.23,7.6]
[1759413982975,3.9745,226.31,226.23,7.6]
[1759413983573,11.194,226.33,226.23,7.6]
[1759413984083,11.194,226.33,226.23,11.5757]
[1759413984084,7.22,226.33,226.23,11.5757]
[1759413984385,7.22,226.33,226.23,7.6]
[1759413985379,3.9744,226.31,226.23,7.6]
[1759413985778,7.22,226.33,226.23,7.6]
[1759413985984,3.9747,226.29,226.23,7.6]
[1759413986180,7.22,226.33,226.23,7.6]
[1759413987987,7.24,226.31,226.22,5.80211408]
[1759413988885,3.9752,226.27,226.22,5.80211408]
[1759413989082,7.24,226.31,226.22,13.28211408]
[1759413989588,64.502282,226.32,226.17,7.48]
[1759413989589,7.24,226.29,226.17,7.48]
[1759413989984,3.9752,226.27,226.18,3.9766]
[1759413990180,7.24,226.29,226.17,7.48]
[1759413990480,3.9768,226.17,226.11,7.48]
[1759413990782,7.24,226.2,226.11,7.48]
[1759413990987,2.678982,226.24,226.11,7.48]
[1759413991189,3.9759,226.22,226.11,11.4577]
[1759413991382,3.9759,226.22,226.11,7.48]
[1759413992697,3.9759,226.22,226.12,3.9775]
[1759413992994,7.24,226.25,226.11,7.48]
[1759413993187,2.678982,226.28,226.14,7.48]
[1759413993591,64.512582,226.28,226.14,11.4573]
[1759413994290,3.9758,226.23,226.15,3.977]
[1759413995595,3.9758,226.23,226.14,7.48]
[1759413996692,3.9761,226.22,226.14,7.48]
[1759413996893,9.918982,226.25,226.14,7.48]
[1759413997093,7.24,226.23,226.11,3.9779]
[1759413998700,7.24,226.23,226.1,7.48]
[1759413999902,3.9764,226.2,226.1,7.48]
[1759414000198,9.918982,226.21,226.1,7.48]
[1759414002202,3.9771,226.16,226.1,7.48]
[1759414002409,7.24,226.17,226.06,7.48]
[1759414002900,7.24,226.14,226.02,7.48]
[1759414003092,69.1121,226.14,226.02,7.48]
[1759414003296,61.8747,226.13,226.02,7.48]
[1759414003497,7.24,226.12,226.02,7.48]
[1759414003898,3.9785,226.08,226.02,7.48]
[1759414004396,3.9781,226.1,226.02,7.48]
[1759414006508,3.9784,226.09,226.02,7.48]
[1759414008804,3.9785,226.08,226.02,7.48]
[1759414009206,3.9789,226.06,226.02,7.48]
[1759414009409,7.24,226.09,225.98,7.48]
[1759414009909,3.9786,226.07,225.98,7.48]
[1759414010311,7.24,226.09,225.98,11.46]
[1759414010504,3.9785,226.08,225.98,11.46]
[1759414010706,7.24,226.09,225.99,3.9798]
[1759414011004,3.9785,226.08,225.99,3.9798]
[1759414011308,7.24,226.15,226.01,7.48]
[1759414011504,7.24,226.15,226.04,7.48]
[1759414012609,7.24,226.15,226.06,2.678982]
[1759414013410,7.24,226.2,226.07,7.48]
[1759414013612,7.24,226.2,226.09,2.678982]
[1759414013817,7.24,226.2,226.12,7.48]
[1759414014108,7.24,226.2,226.12,10.158982]
[1759414014305,7.16,226.24,226.12,10.158982]
[1759414014508,3.9759,226.23,226.14,3.9772]
[1759414014910,7.16,226.24,226.12,10.158982]
[1759414015304,7.16,226.24,226.13,7.53]
[1759414015507,7.16,226.24,226.09,61.8832]
[1759414015508,7.16,226.24,226.16,7.53]
[1759414016813,3.9758,226.23,226.16,7.53]
[1759414017704,3.9761,226.22,226.16,7.53]
[1759414018810,7.16,226.24,226.16,7.53]
[1759414019004,61.8391,226.26,226.09,7.53]
[1759414019204,7.16,226.2,226.09,7.53]
[1759414019413,7.16,226.2,226.09,10.208982]
[1759414020014,3.9765,226.19,226.1,7.53]
[1759414020310,7.16,226.24,226.17,1.71846631]
[1759414020916,11.1357,226.24,226.17,1.71846631]
[1759414021107,7.16,226.24,226.19,1.71846631]
[1759414021415,3.9757,226.24,226.19,1.71846631]
[1759414022011,11.1357,226.24,226.19,1.71846631]
[1759414022615,11.136,226.22,226.17,1.71846631]
[1759414023021,11.136,226.22,226.17,9.24846631]
[1759414023216,7.16,226.23,226.1,7.53]
[1759414023523,7.16,226.21,226.12,1.71846631]
[1759414023919,7.16,226.21,226.14,1.71846631]
[1759414024124,3.9764,226.2,226.14,1.71846631]
[1759414024324,7.16,226.21,226.12,1.71846631]
[1759414024524,3.9766,226.19,226.12,1.71846631]
[1759414024924,7.16,226.26,226.16,1.71846631]
[1759414025124,100.06,226.27,226.2,1.71846631]
[1759414025325,100.06,226.27,226.22,1.71846631]
[1759414025525,7.16,226.3,226.24,1.71846631]
[1759414025726,323.25846631,226.35,226.26,1.71846631]
[1759414026027,328.7,226.35,226.28,1.71846631]
[1759414026725,7.16,226.32,226.28,1.71846631]
[1759414026922,7.16,226.34,226.24,1.71846631]
[1759414027328,3.9747,226.3,226.24,1.71846631]
[1759414028329,3.9747,226.3,226.23,7.53]
[1759414028330,61.8196,226.33,226.23,7.53]
[1759414029023,3.9745,226.3,226.23,7.53]
[1759414029230,7.16,226.34,226.23,7.53]
[1759414030029,3.9747,226.3,226.23,7.53]
[1759414030333,7.16,226.34,226.23,7.53]
[1759414030633,118.52,226.38,226.25,7.53]
[1759414030826,118.52,226.38,226.28,7.53]
[1759414031135,111.36,226.38,226.28,7.53]
[1759414031632,111.36,226.38,226.29,3.9746]
[1759414031931,3.9727,226.41,226.3,7.53]
[1759414032332,66.04581156,226.42,226.3,7.53]
[1759414032532,61.8048,226.38,226.24,7.53]
[1759414033124,3.9737,226.35,226.24,11.5055]
[1759414033628,7.16,226.39,226.24,11.5055]
[1759414033826,3.9736,226.36,226.24,11.5055]
[1759414034531,7.16,226.39,226.24,11.5055]
[1759414034532,3.9738,226.34,226.24,11.5055]
[1759414035431,3.9733,226.37,226.26,3.9752]
[1759414035637,3.9733,226.37,226.27,7.53]
[1759414035836,7.16,226.39,226.27,7.53]
[1759414038036,7.16,226.39,226.29,7.53]
[1759414040332,7.16,226.39,226.24,11.5056]
[1759414040835,3.9739,226.34,226.24,7.53]
[1759414041039,7.16,226.39,226.26,7.53]
[1759414041238,3.9735,226.37,226.26,7.53]
[1759414041542,3.9735,226.37,226.28,7.53]
[1759414043539,7.16,226.39,226.3,7.66]
[1759414043938,7.16,226.39,226.24,7.71]
[1759414043939,7.46,226.39,226.24,7.71]
[1759414044246,61.8051,226.38,226.24,7.71]
[1759414044541,3.974,226.33,226.24,7.71]
[1759414044937,7.46,226.35,226.24,7.71]
[1759414045341,3.9739,226.34,226.24,11.6854]
[1759414045542,3.9739,226.34,226.24,7.71]
[1759414045842,7.46,226.35,226.24,7.71]
[1759414046740,3.9742,226.33,226.25,3.9752]
[1759414046941,69.2611,226.4,226.26,7.71]
[1759414047134,61.8027,226.39,226.26,7.71]
[1759414047332,7.46,226.38,226.26,7.71]
[1759414048241,9.17631788,226.38,226.29,1.71631788]
[1759414048443,7.46,226.37,226.27,1.71631788]
[1759414048738,1.71631788,226.36,226.27,1.71631788]
[1759414048932,7.46,226.33,226.24,1.71631788]
[1759414049138,1.71631788,226.32,226.22,1.71631788]
[1759414049433,7.46,226.33,226.26,1.71631788]
[1759414049742,9.17631788,226.33,226.25,1.71631788]
[1759414050138,3.9747,226.29,226.23,9.42631788]
[1759414051442,3.9751,226.27,226.23,9.42631788]
[1759414051645,7.46,226.27,226.19,9.42631788]
[1759414052138,7.46,226.31,226.24,1.71631788]
[1759414052339,7.46,226.35,226.3,9.42631788]
[1759414052843,9.17631788,226.38,226.3,1.71631788]
[1759414053144,9.17631788,226.38,226.28,1.71631788]
[1759414053340,11.4341,226.33,226.28,1.71631788]
[1759414053638,9.17631788,226.36,226.26,1.71631788]
[1759414053838,1.71631788,226.34,226.26,1.71631788]
[1759414054039,3.9747,226.3,226.26,1.71631788]
[1759414054239,7.46,226.31,226.2,7.71]
[1759414054444,7.46,226.31,226.22,1.71631788]
[1759414055639,3.9749,226.28,226.22,1.71631788]
[1759414055840,7.46,226.31,226.22,1.71631788]
[1759414056340,7.46,226.28,226.24,1.71631788]
[1759414056744,7.46,226.28,226.22,1.71631788]
[1759414057247,3.9752,226.27,226.22,1.71631788]
[1759414057447,3.9752,226.27,226.22,9.42631788]
[1759414058247,7.46,226.28,226.22,9.42631788]
[1759414059451,11.4352,226.27,226.22,7.71]
[1759414059648,1.71631788,226.3,226.21,5.38842364]
[1759414059649,1.71631788,226.3,226.21,13.09842364]
[1759414060050,7.46,226.29,226.21,13.09842364]
[1759414060349,1.71631788,226.28,226.22,3.67210576]
[1759414060545,3.9756,226.24,226.22,3.67210576]
[1759414060747,11.4356,226.24,226.21,3.67210576]
[1759414060942,7.46,226.26,226.21,11.38210576]
[1759414061950,1.71631788,226.28,226.2,3.67210576]
[1759414063847,3.9753,226.26,226.2,3.67210576]
[1759414064047,7.46,226.27,226.2,3.67210576]
[1759414064254,7.46,226.25,226.19,3.67210576]
[1759414064951,1.71631788,226.26,226.19,3.67210576]
[1759414065150,9.17631788,226.29,226.2,5.38842364]
[1759414065351,9.17631788,226.29,226.2,13.09842364]
[1759414065655,9.17631788,226.29,226.17,4.91348593]
[1759414065656,7.46,226.34,226.24,9.42631788]
[1759414065853,7.46,226.34,226.26,1.71631788]
[1759414066048,5.86518207,226.37,226.28,1.71631788]
[1759414066347,5.86518207,226.37,226.28,9.42631788]
[1759414066543,1.71631788,226.33,226.23,13.09842364]
[1759414066943,3.9744,226.31,226.25,1.71631788]
[1759414067656,7.46,226.34,226.25,1.71631788]
[1759414067657,11.434,226.34,226.25,1.71631788]
[1759414067852,7.46,226.34,226.25,1.71631788]
[1759414068254,3.9743,226.32,226.25,1.71631788]
[1759414068446,1.71631788,226.33,226.25,1.71631788]
[1759414068848,3.9747,226.3,226.25,1.71631788]
[1759414069051,3.9747,226.3,226.25,9.42631788]
[1759414069250,3.9747,226.3,226.26,7.71]
[1759414070151,3.9747,226.3,226.24,3.67210576]
[1759414070348,71.00221788,226.31,226.24,3.67210576]
[1759414070548,9.17631788,226.29,226.23,3.67210576]
[1759414071144,9.17631788,226.29,226.24,3.67210576]
[1759414071349,7.46,226.29,226.24,3.67210576]
[1759414072450,3.9752,226.27,226.24,3.67210576]
[1759414072655,3.9752,226.27,226.23,3.67210576]
[1759414072949,3.9752,226.27,226.23,11.38210576]
[1759414075257,3.9752,226.27,226.23,7.71]
[1759414075454,3.9752,226.27,226.25,3.67210576]
[1759414075758,11.6052,226.27,226.25,3.67210576]
[1759414075950,7.63,226.26,226.25,3.67210576]
[1759414076348,3.9754,226.25,226.21,4.91348593]
[1759414076550,11.6054,226.25,226.21,4.91348593]
[1759414076753,7.63,226.25,226.21,4.91348593]
[1759414077359,7.63,226.25,226.2,4.91348593]
[1759414077659,3.9757,226.24,226.2,4.91348593]
[1759414078160,3.9753,226.26,226.2,4.91348593]
[1759414078661,7.63,226.23,226.2,4.91348593]
[1759414080262,1.71631788,226.26,226.2,4.91348593]
[1759414080460,7.63,226.24,226.19,4.91348593]
[1759414080655,3.9763,226.2,226.18,4.91348593]
[1759414080862,1.71631788,226.2,226.16,4.91348593]
[1759414081061,1.71631788,226.2,226.14,4.91348593]
[1759414081253,61.8583,226.19,226.11,7.36694897]
[1759414081460,7.63,226.15,226.06,9.08326685]
[1759414082264,7.63,226.15,226.05,336.72694897]
[1759414082661,7.63,226.15,226.05,15.16694897]
[1759414082662,61.8686,226.15,226.05,15.16694897]
[1759414082865,7.63,226.14,226.05,7.8]
[1759414083362,7.63,226.14,226.04,7.36694897]
[1759414083761,3.9784,226.08,226.04,7.36694897]
[1759414083962,11.6084,226.08,226.04,7.36694897]
[1759414084168,11.6084,226.08,226.02,7.36694897]
[1759414084462,7.63,226.08,226.01,7.8]
[1759414085262,7.63,226.08,225.97,7.8]
[1759414085667,3.979,226.05,225.97,7.8]
[1759414085866,7.63,226.08,225.97,7.8]
[1759414086064,61.8898,226.07,225.97,7.8]
[1759414086262,3.9793,226.03,225.97,7.8]
[1759414087762,7.63,226.06,225.97,7.8]
[1759414088165,111.12,226.11,225.98,3.9801]
[1759414088362,11.6078,226.12,225.98,7.8]
[1759414088664,61.86,226.18,225.98,7.8]
[1759414088665,7.63,226.18,226.04,7.8]
[1759414088862,11.6068,226.18,226.06,6.66566287]
[1759414089062,11.6068,226.18,226.07,7.8]
[1759414089565,7.63,226.18,226.07,7.8]
[1759414089770,7.63,226.16,226.04,2.68696287]
[1759414090271,7.63,226.16,226.02,7.8]
[1759414090469,3.9775,226.13,226.02,7.8]
[1759414090666,7.63,226.16,226.02,7.8]
[1759414090862,7.63,226.16,226.05,3.9789]
[1759414091069,7.63,226.16,226.06,7.8]
[1759414091971,7.63,226.2,226.1,7.8]
[1759414092670,3.9765,226.19,226.1,7.8]
[1759414093260,11.6068,226.17,226.03,7.8]
[1759414093669,7.63,226.17,226.03,7.8]
[1759414093975,7.63,226.17,226.07,7.8]
[1759414094369,3.9773,226.14,226.07,7.8]
[1759414094574,7.63,226.14,225.98,7.8]
[1759414094968,3.9776,226.13,226.0,3.9797]
[1759414095168,3.9776,226.13,226.01,7.8]
[1759414095770,3.9776,226.13,226.02,3.9794]
[1759414096371,7.63,226.14,226.04,11.7791]
[1759414096770,7.63,226.14,226.04,7.8]
[1759414098074,3.9777,226.12,226.04,7.8]
[1759414098478,7.63,226.14,226.04,7.8]
[1759414098678,11.6073,226.14,226.04,7.8]
[1759414099071,7.63,226.14,226.05,3.9789]
[1759414099467,7.63,226.14,226.04,7.8]
[1759414100173,3.9779,226.11,226.04,7.8]
[1759414101773,3.9775,226.13,226.04,7.8]
[1759414102779,3.9775,226.13,226.04,11.7789]
[1759414103178,7.63,226.14,226.04,7.8]
[1759414103478,7.63,226.14,226.06,3.9787]
[1759414104082,7.63,226.14,226.04,7.8]
[1759414104684,3.9779,226.11,226.04,7.8]
[1759414105382,3.9775,226.13,226.04,7.8]
[1759414106282,3.9778,226.12,226.04,7.8]
[1759414107781,7.4,226.11,226.04,7.8]
[1759414107979,7.4,226.11,225.97,7.47]
[1759414108586,61.8764,226.12,225.97,7.47]
[1759414108587,7.4,226.07,225.97,7.47]
[1759414109487,7.4,226.07,225.94,7.47]
[1759414110192,3.40435923,226.06,225.94,7.47]
[1759414110392,7.4,226.07,225.94,7.47]
[1759414110889,7.4,226.05,225.94,7.47]
[1759414111090,3.40405169,226.04,225.94,7.47]
[1759414111290,3.40405169,226.03,225.94,7.47]
[1759414111489,7.4,226.05,225.94,7.47]
[1759414111690,3.40230999,226.04,225.94,7.47]
[1759414111890,3.40230999,226.03,225.94,7.47]
[1759414112090,7.4,226.02,225.94,7.47]
[1759414112393,7.4,226.02,225.89,124.50137906]
[1759414112394,3.40019295,226.01,225.9,7.47]
[1759414112594,3.40052177,226.0,225.9,7.47]
[1759414112792,7.4,226.02,225.9,7.47]
[1759414112986,61.8984,226.04,225.9,11.4515]
[1759414112987,3.9803,225.98,225.9,11.4515]
[1759414113296,7.4,225.99,225.9,11.4515]
[1759414113696,3.9801,225.98,225.9,7.47]
[1759414116302,3.9805,225.96,225.9,7.47]
[1759414116499,3.39290083,225.98,225.9,7.47]
[1759414116794,3.39290083,225.98,225.73,7.969]
[1759414116795,3.9815,225.91,225.82,7.47]
[1759414117000,3.39313387,225.94,225.82,18.3829]
[1759414117197,3.39313387,225.93,225.82,18.3829]
[1759414117396,3.39313387,225.92,225.83,7.47]
[1759414117596,7.4,225.95,225.83,7.47]
[1759414117597,3.38965732,225.94,225.84,3.9826]
[1759414117789,3.38965732,225.93,225.85,7.47]
[1759414117994,11.3807,225.95,225.85,7.47]
[1759414118198,3.38978093,225.94,225.85,11.62]
[1759414118400,3.38978093,225.93,225.85,11.62]
[1759414118700,7.4,225.95,225.85,11.62]
[1759414118903,3.38702216,225.94,225.85,11.62]
[1759414119090,3.38702216,225.93,225.85,11.62]
[1759414119296,11.3808,225.95,225.85,11.62]
[1759414119492,3.38475138,225.94,225.85,11.62]
[1759414119702,7.36585138,225.93,225.85,11.62]
[1759414119996,3.9811,225.93,225.85,11.62]
[1759414120297,7.4,225.95,225.85,24.2424]
[1759414120498,3.3829488,225.94,225.85,20.26]
[1759414120695,3.3829488,225.93,225.85,20.26]
[1759414120995,3.98,225.99,225.89,11.4517]
[1759414121196,10.78415568,225.98,225.89,7.47]
[1759414121500,3.38415568,225.97,225.89,7.47]
[1759414121698,3.38415568,225.96,225.89,7.47]
[1759414121898,3.38415568,225.95,225.89,7.47]
[1759414122103,3.38415568,225.94,225.86,7.47]
[1759414122406,3.3797129,225.93,225.86,7.47]
[1759414122604,11.3805,225.96,225.86,7.47]
[1759414122791,3.37912553,225.95,225.86,7.47]
[1759414122997,3.37912553,225.94,225.86,7.47]
[1759414123199,3.37912553,225.93,225.86,7.47]
[1759414123399,7.4,225.96,225.86,7.47]
[1759414123604,3.37894792,225.95,225.86,7.47]
[1759414123799,3.37894792,225.94,225.86,7.47]
[1759414124099,3.37894792,225.93,225.86,7.47]
[1759414124398,7.4,225.96,225.86,7.47]
[1759414124696,7.4,225.94,225.86,7.47]
[1759414124901,3.37891782,225.93,225.86,7.47]
[1759414125097,7.36031782,225.92,225.86,7.47]
[1759414125297,3.37891782,225.91,225.86,7.47]
[1759414125498,3.37792104,225.9,225.86,7.47]
[1759414125699,3.9814,225.92,225.86,7.47]
[1759414125896,11.3816,225.9,225.85,20.26]
[1759414126102,3.37607055,225.89,225.85,20.26]
[1759414126297,3.37607055,225.89,225.85,12.79]
[1759414126298,7.4,225.89,225.85,12.79]
[1759414126608,61.92,225.96,225.85,20.26]
[1759414126609,7.4,225.93,225.85,20.26]
[1759414126805,3.37611748,225.92,225.85,20.26]
[1759414127006,7.4,225.89,225.85,12.79]
[1759414127299,3.37611748,225.88,225.85,12.79]
[1759414127503,7.4,225.89,225.85,12.79]
[1759414127704,3.37525275,225.88,225.85,12.79]
[1759414127901,7.4,225.95,225.85,20.26]
[1759414128097,3.9812,225.92,225.85,20.26]
[1759414128302,3.37525275,225.91,225.85,20.26]
[1759414128504,7.4,225.95,225.85,12.79]
[1759414128704,3.37449767,225.94,225.86,7.47]
[1759414128902,3.37449767,225.93,225.86,7.47]
[1759414129098,7.4,225.98,225.86,7.47]
[1759414129297,3.37427672,225.97,225.86,7.47]
[1759414129501,3.37427672,225.96,225.86,7.47]
[1759414129701,7.4,225.94,225.86,7.47]
[1759414129910,3.37427672,225.93,225.86,7.47]
[1759414130110,118.46,225.99,225.86,7.47]
[1759414130305,3.9808,225.95,225.86,11.4521]
[1759414130610,3.37387497,225.94,225.86,11.4521]
[1759414130810,3.37387497,225.93,225.86,11.4521]
[1759414131011,3.37387497,225.92,225.86,11.4521]
[1759414131211,7.4,225.99,225.86,11.4521]
[1759414131410,3.37296849,225.98,225.86,11.4521]
[1759414131612,3.37296849,225.97,225.86,11.4521]
[1759414131808,3.37296849,225.96,225.86,11.4521]
[1759414132002,3.37296849,225.95,225.88,7.47]
[1759414132205,7.4,225.99,225.88,7.47]
[1759414132407,7.35316133,225.98,225.89,3.9817]